bitfinex/quotes_SOLUSD_20211001
["timestamp","ask_amount","ask_price","bid_price","bid_amount"]
[1633105768688,0.02088,157.25,157.1,5.53138953]
[1633105769788,0.02088,157.25,157.08,5.53170588]
[1633105770987,24.15403571,157.23,157.06,5.5325749]
[1633105771188,24.15403571,157.23,157.09,7.17731455]
[1633105771189,26.19403571,157.23,157.09,7.17731455]
[1633105771388,26.19403571,157.23,157.06,5.5325749]
[1633105771989,26.19403571,157.23,157.04,5.53203617]
[1633105772987,26.19403571,157.23,157.07,5.53077868]
[1633105773190,2.04,157.23,157.08,0.02088]
[1633105773987,2.04,157.28,157.08,0.02088]
[1633105774188,21.7245844,157.27,157.11,5.52946497]
[1633105774387,21.7245844,157.27,157.12,0.02088]
[1633105775188,21.7245844,157.27,157.09,5.52995898]
[1633105776196,21.7245844,157.27,157.1,5.52981906]
[1633105777792,2.04,157.26,157.1,5.52981906]
[1633105777993,2.04,157.26,157.08,5.53056141]
[1633105778194,2.04,157.26,157.07,0.02088]
[1633105779293,2.04,157.26,157.1,5.52992994]
[1633105779494,2.04,157.26,157.11,0.02088]
[1633105780093,2.04,157.3,157.11,0.02088]
[1633105780493,2.04,157.3,157.13,5.52857287]
[1633105780694,2.04,157.3,157.14,0.02088]
[1633105781097,22.53035922,157.29,157.11,7.19468307]
[1633105781294,24.57035922,157.29,157.11,7.19468307]
[1633105781895,24.57035922,157.29,157.11,18.05565096]
[1633105782096,24.57035922,157.29,157.11,7.19468307]
[1633105782295,130.45165454,157.29,157.11,7.19468307]
[1633105782494,0.02088,157.28,157.11,7.17380307]
[1633105782695,2.04,157.27,157.11,7.17380307]
[1633105782895,29.86807775,157.26,157.11,7.17380307]
[1633105783094,0.02088,157.25,157.11,7.17380307]
[1633105783295,2.04,157.24,157.1,535.67294479]
[1633105783497,26.8754493,157.23,157.06,5.53178077]
[1633105783694,26.8754493,157.23,157.11,7.1763592]
[1633105783894,26.8754493,157.23,157.06,5.53178077]
[1633105784494,26.8754493,157.23,157.07,5.53123165]
[1633105785495,26.8754493,157.23,157.08,5.53159603]
[1633105786699,53.9610255,157.23,157.07,5.53195364]
[1633105787299,2.04,157.22,157.07,5.53195364]
[1633105787702,2.04,157.22,157.05,5.53234394]
[1633105789804,2.04,157.22,157.09,5.53129039]
[1633105790003,1.71,157.22,157.09,5.53129039]
[1633105790406,26.8754493,157.23,157.09,5.53129039]
[1633105791005,26.8754493,157.23,157.1,5.53089083]
[1633105793212,17.88389319,157.28,157.1,5.53089083]
[1633105793413,2.04,157.28,157.1,5.55177083]
[1633105793609,2.04,157.28,157.11,0.02088]
[1633105793811,2.04,157.33,157.11,0.02088]
[1633105794009,2.04,157.33,157.11,7.19671095]
[1633105794210,26.54641534,157.32,157.14,5.52968816]
[1633105795010,3.67,157.32,157.14,5.52968816]
[1633105795209,3.67,157.32,157.15,2.06088]
[1633105795413,3.67,157.32,157.19,5.52780896]
[1633105795610,3.67,157.32,157.2,0.02088]
[1633105795810,3.67,157.32,157.17,5.54958501]
[1633105796612,3.67,157.32,157.17,0.02088]
[1633105796811,3.67,157.32,157.16,0.02088]
[1633105797215,3.67,157.32,157.16,25.14942253]
[1633105797413,3.67,157.32,157.17,40.25504944]
[1633105797612,3.67,157.32,157.22,5.52538296]
[1633105798012,3.67,157.32,157.23,0.02088]
[1633105798413,3.67,157.32,157.23,7.19023525]
[1633105798613,3.67,157.32,157.24,0.02088]
[1633105799015,3.67,157.32,157.24,7.18993471]
[1633105799414,2.06088,157.47,157.24,73.86218255]
[1633105799615,2.06088,157.47,157.25,7.16835337]
[1633105800014,21.98372394,157.46,157.25,7.16835337]
[1633105800215,21.98372394,157.46,157.26,25.42322205]
[1633105800415,21.98372394,157.46,157.27,7.16551057]
[1633105800614,21.98372394,157.46,157.27,23.28599383]
[1633105800816,21.98372394,157.46,157.27,16.14136326]
[1633105801214,21.98372394,157.46,157.27,41.56458531]
[1633105801415,21.98372394,157.46,157.27,43.60458531]
[1633105803716,21.98372394,157.46,157.27,43.58370531]
[1633105803917,21.98372394,157.46,157.27,18.16048326]
[1633105804119,24.02372394,157.46,157.24,0.02088]
[1633105804317,0.02088,157.45,157.23,77.6207]
[1633105804518,21.63266411,157.43,157.2,2.04]
[1633105804719,2.06088,157.42,157.2,2.04]
[1633105804918,0.02088,157.41,157.2,2.04]
[1633105805119,0.02088,157.41,157.2,52.16954236]
[1633105805719,112.291,157.42,157.2,52.19042236]
[1633105806120,112.291,157.42,157.21,7.37447674]
[1633105806320,36.76135749,157.43,157.21,9.41447674]
[1633105806518,36.76135749,157.43,157.22,57.50388477]
[1633105806720,36.76135749,157.43,157.22,50.12954236]
[1633105806920,36.76135749,157.43,157.23,25.42322205]
[1633105808822,0.02088,157.42,157.23,25.42322205]
[1633105809624,20.89888,157.42,157.23,25.42322205]
[1633105809822,2.06088,157.41,157.18,25.42322205]
[1633105810025,25.04530889,157.4,157.15,79.1756]
[1633105810223,4.55685069,157.39,157.15,79.1756]
[1633105810425,0.02088,157.38,157.14,0.02088]
[1633105810624,0.02088,157.38,157.14,7.37794356]
[1633105810625,2.04,157.37,157.14,7.37794356]
[1633105810824,26.1097895,157.36,157.14,7.37794356]
[1633105811023,26.1097895,157.36,157.12,7.37889987]
[1633105811024,2.06088,157.35,157.12,7.37889987]
[1633105811226,0.02088,157.34,157.11,24.05099983]
[1633105811424,2.04,157.33,157.06,29.59338852]
[1633105811623,21.58960348,157.32,157.07,7.38048724]
[1633105811827,0.02088,157.3,157.07,31.43148707]
[1633105812023,23.47102919,157.28,157.08,7.38057926]
[1633105812226,0.02088,157.27,157.08,7.38057926]
[1633105812426,15.9139,157.25,157.08,7.38057926]
[1633105812624,29.41854312,157.23,157.08,7.38057926]
[1633105812824,0.02088,157.22,157.08,7.38057926]
[1633105813026,0.02088,157.22,157.02,7.3837675]
[1633105813626,22.25659018,157.14,157.02,7.3837675]
[1633105813827,43.25959018,157.14,157.01,117.2]
[1633105814026,103.0,157.13,156.94,5.54602021]
[1633105814227,0.02088,157.12,157.02,69.3919]
[1633105814430,26.98033327,157.1,156.93,117.2]
[1633105814626,0.02088,157.08,156.93,117.2]
[1633105814827,26.8203601,157.06,156.93,117.2]
[1633105815029,2.06088,157.05,156.93,117.2]
[1633105815229,0.02088,157.04,156.82,5.5296016]
[1633105815427,2.04,157.03,156.82,5.5296016]
[1633105815627,17.9778,157.03,156.83,44.30201125]
[1633105815827,17.9778,157.03,156.84,0.02088]
[1633105816030,27.9434195,157.02,156.85,25.8865524]
[1633105816227,2.04,157.01,156.85,25.8865524]
[1633105816427,2.04,157.01,156.81,0.02088]
[1633105816627,2.04,157.01,156.77,0.09005594]
[1633105816628,2.04,157.01,156.79,7.39348384]
[1633105816829,44.30335686,157.0,156.78,7.39383438]
[1633105817030,2.06088,156.99,156.78,6.39383438]
[1633105817232,0.02088,156.98,156.77,0.09005594]
[1633105817428,2.04,156.97,156.77,0.09005594]
[1633105817629,0.02088,156.96,156.76,25.07478768]
[1633105817829,26.24196883,156.94,156.78,49.80913007]
[1633105818029,26.24196883,156.94,156.79,26.15073805]
[1633105818230,24.11440468,156.76,156.7,18.4920593]
[1633105818429,24.11440468,156.76,156.72,23.72516567]
[1633105818628,0.04,156.85,156.76,24.11440468]
[1633105818828,0.04,156.87,156.76,24.11440468]
[1633105819029,2.04,156.92,156.76,24.11440468]
[1633105819230,5.12866582,156.91,156.76,24.11440468]
[1633105819428,2.04,156.9,156.76,24.11440468]
[1633105819830,0.04,156.89,156.76,24.11440468]
[1633105820029,2.04,156.88,156.76,24.11440468]
[1633105820230,0.04,156.87,156.76,24.11440468]
[1633105820430,2.04,156.87,156.76,24.11440468]
[1633105820630,0.04,156.86,156.76,24.11440468]
[1633105820831,2.04,156.87,156.76,24.11440468]
[1633105822134,0.04,156.86,156.76,24.11440468]
[1633105825235,2.04,156.85,156.76,8.11440468]
[1633105825435,7.9308167,156.76,156.67,358.03347061]
[1633105825635,29.2158167,156.76,156.67,358.03347061]
[1633105826036,7.9308167,156.76,156.67,358.03347061]
[1633105826235,7.9308167,156.76,156.68,30.09513812]
[1633105830541,7.9308167,156.76,156.67,358.03347061]
[1633105830741,27.5228167,156.76,156.67,358.03347061]
[1633105831341,7.9308167,156.76,156.67,358.03347061]
[1633105831542,7.9308167,156.76,156.68,26.7659058]
[1633105832941,7.9308167,156.76,156.67,358.03347061]
[1633105833941,7.9308167,156.76,156.68,27.87302603]
[1633105834643,7.9308167,156.76,156.67,358.03347061]
[1633105835645,7.9308167,156.76,156.68,29.63866024]
[1633105836047,7.9308167,156.76,156.67,358.03347061]
[1633105837048,0.04,156.75,156.6,29.18952835]
[1633105837450,0.04,156.75,156.61,336.79618971]
[1633105838051,7.9308167,156.76,156.61,336.79618971]
[1633105838248,7.9308167,156.76,156.61,384.26959562]
[1633105838449,7.9308167,156.76,156.67,3.68107]
[1633105838667,7.9308167,156.76,156.65,3.68157268]
[1633105838849,7.9308167,156.76,156.64,3.68162678]
[1633105839051,7.9308167,156.76,156.65,26.2395218]
[1633105839251,7.9308167,156.76,156.68,3.68419416]
[1633105839451,7.9308167,156.76,156.69,3.68409418]
[1633105839851,7.9308167,156.76,156.7,3.68378587]
[1633105840251,7.9308167,156.76,156.74,3.68679676]
[1633105840651,38.9708167,156.76,156.75,3.68673987]
[1633105841250,38.9708167,156.76,156.71,5.53007419]
[1633105841251,7.9708167,156.76,156.71,5.53007419]
[1633105841451,2.04,156.85,156.76,7.9308167]
[1633105841667,2.06088,156.85,156.81,3.68891162]
[1633105841850,2.06088,156.85,156.76,7.9308167]
[1633105841851,0.02088,156.88,156.84,3.68833811]
[1633105842050,2.04,156.9,156.84,3.68833811]
[1633105842452,2.04,156.9,156.85,3.6884294]
[1633105842653,0.02088,156.91,156.85,3.6884294]
[1633105842850,2.04,156.94,156.89,3.6874197]
[1633105842851,0.02088,156.94,156.89,3.6874197]
[1633105843051,2.04,156.97,156.89,3.6874197]
[1633105843251,2.04,156.97,156.85,5.53112955]
[1633105843252,2.04,156.97,156.88,3.68756319]
[1633105843450,0.02088,156.98,156.96,26.26540981]
[1633105843652,2.04,157.05,156.96,26.26540981]
[1633105843852,2.04,157.05,157.0,3.68904203]
[1633105844450,2.04,157.05,157.01,3.68769706]
[1633105845052,3.68,157.01,156.96,5.53127105]
[1633105845258,3.68,157.01,156.87,20.75279529]
[1633105845259,5.72,157.01,156.91,5.53407697]
[1633105845453,5.74088,157.01,156.91,5.53407697]
[1633105845653,5.74088,157.01,156.89,5.53481155]
[1633105845854,5.72,157.01,156.89,5.53481155]
[1633105846054,5.72,157.01,156.9,23.48903106]
[1633105846458,5.72,157.01,156.91,10.460554]
[1633105846854,15.74169695,157.0,156.91,15.99378512]
[1633105847054,2.04,156.99,156.91,15.99378512]
[1633105847256,2.04,156.99,156.91,5.53323112]
[1633105847454,2.04,156.99,156.8,16.94504315]
[1633105847455,2.04,156.99,156.84,5.53503399]
[1633105847672,0.02088,156.98,156.84,5.53503399]
[1633105847857,5.61343958,156.96,156.85,28.58285186]
[1633105848056,2.04,156.95,156.85,28.58285186]
[1633105848656,17.9834,156.95,156.85,28.58285186]
[1633105849057,17.9834,156.95,156.83,5.53546947]
[1633105850461,17.9834,156.95,156.84,29.05669642]
[1633105852262,17.9834,156.95,156.83,5.53546461]
[1633105852661,44.68193565,156.95,156.83,5.53546461]
[1633105852862,44.68193565,156.95,156.81,5.53618141]
[1633105853267,44.68193565,156.95,156.82,29.46709233]
[1633105853684,44.68193565,156.95,156.83,10.46381447]
[1633105853864,44.68193565,156.95,156.83,15.9994599]
[1633105854063,17.9834,156.95,156.83,15.9994599]
[1633105854463,2.04,156.95,156.83,15.9994599]
[1633105855063,2.04,156.95,156.85,5.53479893]
[1633105855263,3.68,157.01,156.85,5.53479893]
[1633105855469,2.04,157.0,156.85,5.55567893]
[1633105856063,19.42386538,156.99,156.85,5.53479893]
[1633105856270,19.42386538,156.99,156.87,5.53366645]
[1633105856271,2.04,156.98,156.87,5.53366645]
[1633105856464,2.04,156.98,156.84,5.53452091]
[1633105857064,2.04,156.98,156.85,26.74819545]
[1633105857663,2.04,156.98,156.84,5.53452091]
[1633105857864,21.48,156.98,156.84,5.53452091]
[1633105858063,70.70120747,156.98,156.8,5.53576091]
[1633105858463,70.70120747,156.98,156.77,5.53649521]
[1633105858464,63.78,156.97,156.77,5.53649521]
[1633105858663,63.78,156.97,156.79,22.26995912]
[1633105858664,2.06088,156.96,156.79,22.26995912]
[1633105858864,0.02088,156.95,156.79,22.26995912]
[1633105859064,2.04,156.94,156.79,22.26995912]
[1633105859264,2.06088,156.94,156.79,22.26995912]
[1633105859682,2.06088,156.94,156.79,27.8060312]
[1633105860666,2.06088,156.94,156.79,22.26995912]
[1633105861667,2.04,156.94,156.79,22.26995912]
[1633105861867,2.04,156.94,156.8,10.48308634]
[1633105862068,2.04,156.94,156.8,16.01786138]
[1633105862686,2.04,156.94,156.8,15.99698138]
[1633105863470,2.04,156.94,156.8,5.53477504]
[1633105864270,2.04,156.94,156.79,22.26995912]
[1633105865689,2.04,156.94,156.8,10.4612773]
[1633105866269,2.04,156.94,156.81,0.02088]
[1633105866472,2.04,156.94,156.8,0.02088]
[1633105866870,2.04,156.94,156.79,22.26995912]
[1633105868869,2.04,156.94,156.79,27.80717463]
[1633105869971,2.04,156.94,156.79,22.26995912]
[1633105870170,2.04,156.98,156.79,22.26995912]
[1633105870369,2.04,156.98,156.8,10.47144878]
[1633105870570,2.04,156.98,156.81,0.02088]
[1633105870971,2.04,156.98,156.81,16.01184272]
[1633105871173,16.87925325,156.97,156.82,28.63811152]
[1633105871571,2.04,156.96,156.82,28.63811152]
[1633105874371,2.04,156.96,156.82,34.17962101]
[1633105875576,2.04,156.96,156.8,5.54238801]
[1633105875774,89.76623627,156.96,156.77,16.02162952]
[1633105875974,25.2749712,156.95,156.77,16.02162952]
[1633105876177,2.04,156.94,156.77,5.54346972]
[1633105876375,2.04,156.94,156.77,16.02251222]
[1633105876574,4.47588328,156.93,156.78,29.58234319]
[1633105876777,2.04,156.92,156.78,29.58234319]
[1633105876977,2.04,156.92,156.78,35.12623012]
[1633105877381,4.47588328,156.93,156.79,10.47791416]
[1633105877797,4.47588328,156.93,156.78,5.54388693]
[1633105877798,105.04,156.92,156.78,5.54388693]
[1633105877996,105.04,156.92,156.76,7.9308167]
[1633105878199,15.9516,156.86,156.76,7.9308167]
[1633105878396,2.04,156.85,156.76,7.9308167]
[1633105878598,10.08133909,156.84,156.76,7.9308167]
[1633105878799,2.04,156.83,156.76,7.9308167]
[1633105880396,14.150741,156.82,156.76,7.9308167]
[1633105880798,14.150741,156.82,156.67,0.02088]
[1633105880799,7.9308167,156.76,156.67,0.02088]
[1633105881002,3.93541975,156.76,156.66,117.2]
[1633105881800,3.93541975,156.76,156.67,28.83520511]
[1633105882000,3.93541975,156.76,156.67,0.0944]
[1633105886705,3.93541975,156.76,156.65,0.0944]
[1633105889704,3.93541975,156.76,156.62,0.0944]
[1633105890106,3.93541975,156.76,156.62,25.93661579]
[1633105892306,3.93541975,156.76,156.62,65.23723795]
[1633105892509,3.93541975,156.76,156.63,0.02088]
[1633105892706,3.93541975,156.76,156.63,2.06088]
[1633105892906,3.93541975,156.76,156.64,68.33138462]
[1633105893108,2.04,156.86,156.78,139.06458025]
[1633105893306,2.04,156.86,156.77,21.6113485]
[1633105893711,2.04,156.9,156.77,21.6113485]
[1633105894110,2.04,156.9,156.77,38.88899635]
[1633105894313,2.04,156.95,156.77,38.88899635]
[1633105895110,2.04,156.95,156.77,17.25676785]
[1633105895310,25.98623627,156.95,156.73,0.02088]
[1633105895509,63.78,156.94,156.71,17.2322123]
[1633105895711,110.32608,156.93,156.66,0.02088]
[1633105895914,0.02088,156.92,156.65,0.11528]
[1633105896112,0.02088,156.9,156.65,0.0944]
[1633105896311,2.04,156.89,156.65,26.80714568]
[1633105896510,0.02088,156.88,156.66,21.34480355]
[1633105896715,2.04,156.87,156.66,21.34480355]
[1633105896913,0.02088,156.86,156.66,21.34480355]
[1633105897111,2.04,156.85,156.66,21.34480355]
[1633105897310,2.06088,156.85,156.66,21.34480355]
[1633105897510,2.06088,156.85,156.67,0.0944]
[1633105902316,15.9568,156.83,156.67,0.0944]
[1633105902518,2.04,156.82,156.67,0.0944]
[1633105902718,0.02088,156.81,156.67,0.0944]
[1633105902916,2.04,156.8,156.67,0.0944]
[1633105906819,2.04,156.8,156.62,0.0944]
[1633105907223,2.04,156.8,156.63,6.30550351]
[1633105907620,2.04,156.8,156.63,28.09759927]
[1633105907822,2.04,156.8,156.64,6.30553912]
[1633105908620,15.9616,156.79,156.64,6.30553912]
[1633105908820,2.04,156.78,156.64,6.30553912]
[1633105909422,2.04,156.78,156.65,0.0944]
[1633105911324,95.05984327,156.78,156.65,0.0944]
[1633105911523,2.54862752,156.73,156.65,0.0944]
[1633105911724,2.04,156.72,156.65,0.0944]
[1633105912525,2.04,156.72,156.57,24.74908859]
[1633105912725,2.04,156.72,156.57,0.0944]
[1633105912926,23.109,156.72,156.57,0.0944]
[1633105913528,146.37469545,156.72,156.57,0.0944]
[1633105914128,82.59469545,156.72,156.57,0.0944]
[1633105914332,26.69068071,156.71,156.57,0.0944]
[1633105914527,2.06088,156.7,156.57,0.0944]
[1633105915529,2.06088,156.7,156.56,0.0944]
[1633105917729,2.04,156.7,156.56,0.0944]
[1633105918131,108.36904398,156.69,156.5,16.99407704]
[1633105918330,2.04,156.68,156.51,6.32147294]
[1633105918529,2.04,156.68,156.52,0.02088]
[1633105919529,2.04,156.68,156.51,6.32147294]
[1633105923632,24.854,156.68,156.51,6.32147294]
[1633105924032,24.854,156.68,156.51,6.30059294]
[1633105928435,0.02088,156.67,156.51,6.30059294]
[1633105928637,2.06088,156.67,156.5,16.99407704]
[1633105928839,10.028395,156.66,156.5,16.99407704]
[1633105929039,2.04,156.65,156.51,6.30551489]
[1633105929841,2.04,156.65,156.49,391.89108559]
[1633105930042,2.53060983,156.63,156.49,391.89108559]
[1633105930240,2.04,156.62,156.49,391.89108559]
[1633105930441,2.04,156.62,156.41,562.26556472]
[1633105930643,0.15572284,156.61,156.42,6.30613256]
[1633105930840,2.04,156.6,156.42,34.52078006]
[1633105931041,0.02088,156.59,156.43,6.30638162]
[1633105931241,2.04,156.58,156.43,6.30638162]
[1633105931444,0.02088,156.57,156.43,6.30638162]
[1633105931641,5.38992398,156.61,156.43,6.30638162]
[1633105931843,0.02088,156.61,156.43,6.30638162]
[1633105932042,78.0,156.6,156.41,496.76571384]
[1633105932443,78.0,156.6,156.41,905.69505956]
[1633105932843,78.0,156.6,156.42,47.98147956]
[1633105933246,78.0,156.6,156.43,24.68666024]
[1633105933643,78.0,156.6,156.45,2.42903389]
[1633105933844,78.0,156.6,156.46,21.27647679]
[1633105934045,78.0,156.6,156.46,45.96313703]
[1633105935245,78.0,156.6,156.52,3.6990798]
[1633105935446,78.0,156.6,156.53,24.16462077]
[1633105935646,94.14077606,156.6,156.53,24.16462077]
[1633105935849,78.0,156.6,156.53,24.16462077]
[1633105936245,0.02088,156.63,156.53,24.16462077]
[1633105937048,2.04,156.66,156.53,24.16462077]
[1633105937647,2.04,156.66,156.53,27.86437441]
[1633105938148,2.04,156.66,156.54,3.69981612]
[1633105938749,0.02088,156.67,156.57,3.69937428]
[1633105938948,0.02088,156.69,156.57,3.69937428]
[1633105939148,2.06088,156.72,156.59,3.69957248]
[1633105939347,2.06088,156.72,156.6,3.69952178]
[1633105939348,2.04,156.72,156.6,3.69952178]
[1633105939549,2.04,156.72,156.61,3.69932876]
[1633105939748,0.02088,156.76,156.62,26.10170733]
[1633105939948,0.02088,156.76,156.62,29.80073531]
[1633105940148,22.37086025,156.76,156.63,3.69879299]
[1633105940350,22.37086025,156.76,156.62,29.80068654]
[1633105940851,22.37086025,156.76,156.63,3.6985847]
[1633105941650,22.37086025,156.76,156.62,29.8006107]
[1633105942253,2.04,156.75,156.62,3.69890337]
[1633105942451,2.04,156.75,156.61,3.6991714]
[1633105942650,2.04,156.75,156.58,5.5487571]
[1633105942651,2.04,156.75,156.58,3.69992416]
[1633105942851,2.04,156.75,156.57,3.70020313]
[1633105943251,0.02088,156.74,156.58,22.81961824]
[1633105943453,2.04,156.73,156.58,22.81961824]
[1633105943650,0.02088,156.72,156.58,22.81961824]
[1633105943850,2.06088,156.72,156.58,22.81961824]
[1633105944052,2.04,156.72,156.6,3.69937136]
[1633105944650,2.04,156.72,156.58,22.81961824]
[1633105944651,26.11472856,156.71,156.61,23.69919097]
[1633105944850,26.11472856,156.71,156.59,3.69959417]
[1633105945050,26.11472856,156.71,156.57,3.69988589]
[1633105945853,26.11472856,156.71,156.58,29.31213054]
[1633105946053,2.04,156.72,156.58,29.31213054]
[1633105946250,0.02088,156.71,156.58,33.01194572]
[1633105947052,28.06019913,156.71,156.58,33.01194572]
[1633105947651,28.06019913,156.71,156.58,29.31213054]
[1633105947851,28.06019913,156.71,156.58,33.01213637]
[1633105948051,28.06019913,156.71,156.58,29.31213054]
[1633105948251,0.02088,156.71,156.58,29.31213054]
[1633105948656,0.02088,156.73,156.61,3.69913486]
[1633105949052,0.02088,156.75,156.62,3.69886396]
[1633105949253,25.04885395,156.78,156.63,25.49724293]
[1633105949653,25.04885395,156.78,156.63,29.19558863]
[1633105950254,25.04885395,156.78,156.63,25.49724293]
[1633105950854,2.04,156.78,156.63,25.49724293]
[1633105951053,2.04,156.78,156.63,29.19516413]
[1633105951256,2.04,156.78,156.64,3.69773722]
[1633105951654,2.04,156.78,156.63,29.19460497]
[1633105952258,2.04,156.78,156.64,3.69732491]
[1633105952459,2.04,156.78,156.63,29.19459226]
[1633105953057,2.04,156.78,156.66,3.6964475]
[1633105953259,2.04,156.83,156.66,3.6964475]
[1633105953458,2.04,156.83,156.66,25.25973984]
[1633105965174,18.96112338,156.83,156.66,25.25973984]
[1633105965374,0.02088,156.82,156.61,374.62880701]
[1633105965574,2.04,156.81,156.61,370.93175828]
[1633105965773,0.02088,156.8,156.61,370.93175828]
[1633105965978,2.04,156.79,156.61,370.93175828]
[1633105966373,16.5408481,156.78,156.62,22.7893777]
[1633105966573,18.5808481,156.78,156.62,22.7893777]
[1633105967173,18.5808481,156.78,156.62,26.48680863]
[1633105967774,18.5808481,156.78,156.62,22.7893777]
[1633105968175,2.04,156.78,156.62,22.7893777]
[1633105968373,2.04,156.78,156.64,3.69754582]
[1633105968574,0.02088,156.8,156.65,3.69718834]
[1633105968775,2.04,156.83,156.67,3.69722305]
[1633105968973,2.04,156.83,156.67,26.00822305]
[1633105969175,2.06088,156.87,156.69,3.6968128]
[1633105969377,2.04,156.87,156.74,3.69591895]
[1633105969575,2.04,156.87,156.74,22.47091895]
[1633105969776,0.02088,156.91,156.74,22.47091895]
[1633105969974,2.04,156.93,156.75,3.69479716]
[1633105970174,0.02088,156.94,156.75,3.69479716]
[1633105970175,0.02088,156.94,156.76,33.91242966]
[1633105970374,0.02088,156.97,156.8,3.6935634]
[1633105970575,2.04,157.03,156.82,3.6735071]
[1633105970778,2.04,157.03,156.84,3.65783602]
[1633105970976,2.04,157.03,156.84,22.18983602]
[1633105971378,2.04,157.03,156.85,30.83736904]
[1633105971578,0.02088,157.05,156.85,27.18065892]
[1633105971776,117.3156,157.07,156.86,16.89794438]
[1633105972380,0.02088,157.06,156.86,16.89794438]
[1633105972578,2.04,157.05,156.85,27.18065892]
[1633105972777,0.02088,157.04,156.85,27.18065892]
[1633105972979,2.04,157.03,156.85,27.18065892]
[1633105973178,20.72691179,157.02,156.85,27.18065892]
[1633105976985,2.06088,157.05,156.85,27.18065892]
[1633105977188,2.06088,157.05,156.85,55.98009693]
[1633105977387,2.06088,157.05,156.85,82.94562038]
[1633105977587,2.04,157.1,156.85,99.62689809]
[1633105977788,0.02088,157.09,156.85,99.64777809]
[1633105978187,26.13218055,157.09,156.85,99.64777809]
[1633105978390,0.02088,157.08,156.85,99.64777809]
[1633105978789,0.02088,157.08,156.87,537.91051936]
[1633105978989,0.02088,157.08,156.88,26.16648258]
[1633105979189,0.02088,157.08,156.88,52.92592059]
[1633105979590,0.02088,157.08,156.89,26.75943801]
[1633105980204,0.02088,157.08,156.88,26.16648258]
[1633105981210,0.02088,157.08,156.88,52.92592059]
[1633105983610,0.02088,157.08,156.88,69.6071983]
[1633105986309,26.11130055,157.09,156.89,0.02088]
[1633105986711,26.11130055,157.09,156.89,26.78031801]
[1633105988714,2.04,157.1,156.89,42.70101801]
[1633105989116,2.04,157.1,156.9,63.80088]
[1633105989315,2.04,157.1,156.91,0.02088]
[1633105989715,194.6163,157.14,156.92,53.72496146]
[1633105989915,116.0864,157.14,156.94,15.9163]
[1633105990217,0.02088,157.15,157.01,2.41544364]
[1633105990416,0.02088,157.2,157.01,2.41544364]
[1633105990815,0.02088,157.2,157.01,29.17488165]
[1633105991015,2.06088,157.21,157.01,26.75943801]
[1633105991214,29.83616896,157.2,157.02,27.97321383]
[1633105991414,0.02088,157.19,157.02,27.97321383]
[1633105992617,0.02088,157.19,157.02,54.73265184]
[1633105993420,2.04,157.18,156.97,26.75943801]
[1633105993621,34.46793534,157.02,156.92,0.02088]
[1633105993821,57.25993534,157.02,156.89,353.84398107]
[1633105994021,57.25993534,157.02,156.89,351.80398107]
[1633105994418,13.77591752,157.01,156.9,24.96598578]
[1633105994620,13.77591752,157.01,156.84,2.04]
[1633105994818,0.02088,157.0,156.84,2.04]
[1633105995019,0.02088,157.0,156.81,3.66358205]
[1633105995621,0.02088,157.0,156.82,27.5779012]
[1633105996221,2.06088,157.0,156.82,27.5779012]
[1633105996423,0.02088,156.99,156.82,27.5779012]
[1633105997622,0.02088,156.99,156.82,31.23854337]
[1633105998024,0.02088,156.99,156.82,27.5779012]
[1633105998622,0.02088,156.99,156.82,31.12618569]
[1633105999023,0.02088,156.99,156.83,3.56680227]
[1633105999623,0.02088,156.99,156.84,3.59522287]
[1633105999823,0.02088,156.99,156.85,23.36331818]
[1633106000424,0.02088,157.0,156.85,23.36331818]
[1633106000627,2.16,156.99,156.85,23.36331818]
[1633106000825,0.02088,156.98,156.85,23.36331818]
[1633106001024,2.16,156.97,156.85,23.36331818]
[1633106004829,0.02088,156.98,156.85,25.52331818]
[1633106005030,2.16,157.0,156.86,3.46143166]
[1633106005231,2.16,157.0,156.87,3.46787082]
[1633106005629,2.16,157.0,156.88,26.8853734]
[1633106006030,34.46793534,157.02,156.88,32.50170873]
[1633106006430,34.46793534,157.02,156.88,29.0453734]
[1633106007034,63.66289465,157.02,156.88,29.0453734]